[Event "IIFL Wealth 4th Mumbai GM"]
[Site "Mumbai"]
[Date "2019.01.03"]
[Round "5"]
[White "Praveen Kumar C"]
[Black "Vatsal Singhania"]
[Result "1/2-1/2"]
[ECO "D02"]
[WhiteElo "2233"]
[BlackElo "2130"]
[Annotator "NA"]
[PlyCount "97"]
[EventDate "2018.12.30"]
[EventType "swiss"]
[EventCountry "IND"]
[SourceTitle "playchess.com"]
[Source "ChessBase"]
[SourceQuality "1"]
[TimeControl "40/5400+30:1800+30"]

1. d4 {[%emt 0:00:00]} d5 {[%emt 0:00:00]} 2. Nf3 {[%emt 0:00:00]} Nf6 {[%emt 0:00:00]} 3. g3 {[%emt 0:00:00]} e6 {[%emt 0:00:00]} 4. Bg2 {[%emt 0:00:17]} Be7 {[%emt 0:00:25]} 5. c4 {[%emt 0:00:09]} O-O {[%emt 0:00:07]} 6. O-O {[%emt 0:00:06]} dxc4 {[%emt 0:00:05]} 7. Qc2 {[%emt 0:00:10]} a6 {[%emt 0:00:06]} 8. a4 {[%emt 0:00:10]} Bd7 {[%emt 0:00:05]} 9. Rd1 {[%emt 0:00:11]} Bc6 {[%emt 0:00:10]} 10. Bg5 {[%emt 0:00:12]} b5 {[%emt 0:09:17]} 11. Bxf6 {[%emt 0:01:33]} Bxf6 {[%emt 0:00:05]} 12. Nc3 {[%emt 0:00:09]} Nd7 {[%emt 0:05:22]} 13. Ng5 {[%emt 0:03:07]} Bxg5 {[%emt 0:01:27]} 14. Bxc6 {[%emt 0:00:08]} Rb8 {[%emt 0:00:30]} 15. d5 {[%emt 0:17:26]} Nb6 {[%emt 0:11:30]} 16. dxe6 {[%emt 0:28:11]} Qe7 {[%emt 0:15:22]} 17. a5 {[%emt 0:02:15]} Qxe6 {[%emt 0:02:27]} 18. Be4 {[%emt 0:00:24]} Nc8 {[%emt 0:02:19]} 19. Bxh7+ {[%emt 0:00:10]} Kh8 {[%emt 0:00:02]} 20. Bf5 {[%emt 0:00:10]} Qc6 {[%emt 0:04:00]} 21. Bd7 {[%emt 0:03:15]} Qh6 {[%emt 0:04:21]} 22. Nd5 {[%emt 0:01:35]} c5 {[%emt 0:03:38]} 23. f4 {[%emt 0:07:39]} Bf6 {[%emt 0:01:23]} 24. Nxf6 {[%emt 0:08:24]} Qxf6 {[%emt 0:00:36]} 25. e4 {[%emt 0:00:17]} Qg6 {[%emt 0:11:07]} 26. Rd5 {[%emt 0:02:53]} Nd6 {[%emt 0:03:37]} 27. Qg2 {[%emt 0:06:57]} Rfd8 {[%emt 0:04:20]} 28. Rad1 {[%emt 0:03:04]} Nb7 {[%emt 0:04:09]} 29. Qh3+ {[%emt 0:08:19]} Kg8 {[%emt 0:00:05]} 30. Rh5 {[%emt 0:01:05]} Kf8 {[%emt 0:00:33]} 31. Re5 {[%emt 0:02:25]} Qh6 {[%emt 0:01:36]} 32. Rh5 {[%emt 0:00:20]} Qg6 {[%emt 0:00:14]} 33. Re5 {[%emt 0:00:16]} Qh6 {[%emt 0:00:06]} 34. Qg4 {[%emt 0:00:04]} Nxa5 {[%emt 0:02:32]} 35. Rh5 {[%emt 0:02:15]} Qg6 {[%emt 0:00:29]} 36. Qh4 {[%emt 0:00:02]} Qf6 {[%emt 0:00:08]} 37. Qg4 {[%emt 0:01:52]} Qg6 {[%emt 0:00:16]} 38. Rg5 {[%emt 0:00:47]} Qh6 {[%emt 0:00:50]} 39. Rdd5 {[%emt 0:00:19]} c3 {[%emt 0:05:43]} 40. bxc3 {[%emt 0:00:00]} Nc4 {[%emt 0:00:00]} 41. Rh5 {[%emt 0:08:22]} Qg6 {[%emt 0:01:16]} 42. Qe2 {[%emt 0:01:54]} Nb6 {[%emt 0:01:58]} 43. Rde5 {[%emt 0:02:46]} Kg8 {[%emt 0:03:18]} 44. Bh3 {[%emt 0:05:50]} c4 {[%emt 0:02:19]} 45. Rh4 {[%emt 0:01:06]} Qd6 {[%emt 0:03:28]} 46. Bf1 {[%emt 0:00:12]} g6 {[%emt 0:01:58]} 47. Rg5 {[%emt 0:07:19]} Qd1 {[%emt 0:03:59]} 48. f5 {[%emt 0:01:39]} Qxe2 {[%emt 0:00:31]} 49. Bxe2 {[%emt 0:00:01]} 1/2-1/2

[Event "IIFL Wealth 4th Mumbai GM"]
[Site "Mumbai"]
[Date "2019.01.03"]
[Round "5"]
[White "Bhambure, Shantanu"]
[Black "Nguyen, Van Huy"]
[Result "0-1"]
[ECO "E34"]
[WhiteElo "2223"]
[BlackElo "2438"]
[Annotator "NA"]
[PlyCount "202"]
[EventDate "2018.12.30"]
[EventType "swiss"]
[EventCountry "IND"]
[SourceTitle "playchess.com"]
[Source "ChessBase"]
[SourceQuality "1"]
[TimeControl "40/5400+30:1800+30"]

1. d4 {[%emt 0:00:00]} Nf6 {[%emt 0:00:00]} 2. c4 {[%emt 0:00:00]} e6 {[%emt 0:00:11]} 3. Nc3 {[%emt 0:00:00]} Bb4 {[%emt 0:00:32]} 4. Qc2 {[%emt 0:00:04]} d5 {[%emt 0:01:36]} 5. cxd5 {[%emt 0:01:04]} Qxd5 {[%emt 0:00:55]} 6. Nf3 {[%emt 0:01:18]} Qf5 {[%emt 0:01:26]} 7. Qb3 {[%emt 0:01:14]} Nc6 {[%emt 0:00:21]} 8. Bd2 {[%emt 0:00:45]} a5 {[%emt 0:04:40]} 9. a3 {[%emt 0:05:44]} a4 {[%emt 0:03:21]} 10. Qc4 {[%emt 0:05:40]} Bxc3 {[%emt 0:00:44]} 11. Bxc3 {[%emt 0:00:15]} Qc2 {[%emt 0:12:22]} 12. e3 {[%emt 0:06:56]} Ne4 {[%emt 0:01:31]} 13. Be2 {[%emt 0:02:24]} Nxc3 {[%emt 0:02:20]} 14. Qxc3 {[%emt 0:01:48]} Qxc3+ {[%emt 0:00:48]} 15. bxc3 {[%emt 0:00:04]} b6 {[%emt 0:00:48]} 16. Rb1 {[%emt 0:03:19]} Ke7 {[%emt 0:04:29]} 17. Nd2 {[%emt 0:02:50]} f6 {[%emt 0:05:00]} 18. f3 {[%emt 0:03:17]} Ba6 {[%emt 0:08:05]} 19. Bxa6 {[%emt 0:02:49]} Rxa6 {[%emt 0:00:05]} 20. Ke2 {[%emt 0:01:30]} Nb8 {[%emt 0:06:29]} 21. Rhc1 {[%emt 0:07:54]} Nd7 {[%emt 0:00:32]} 22. Nc4 {[%emt 0:08:22]} Rc8 {[%emt 0:03:36]} 23. e4 {[%emt 0:05:36]} c6 {[%emt 0:17:40]} 24. Rc2 {[%emt 0:05:01]} b5 {[%emt 0:03:04]} 25. Ne3 {[%emt 0:00:41]} Rb6 {[%emt 0:00:26]} 26. c4 {[%emt 0:05:27]} bxc4 {[%emt 0:07:01]} 27. Rxb6 {[%emt 0:01:11]} Nxb6 {[%emt 0:00:10]} 28. Nxc4 {[%emt 0:10:47]} Nd7 {[%emt 0:00:23]} 29. Nb2 {[%emt 0:04:10]} Nb6 {[%emt 0:05:07]} 30. Nd3 {[%emt 0:01:03]} Kd6 {[%emt 0:00:56]} 31. Rc5 {[%emt 0:03:59]} e5 {[%emt 0:01:05]} 32. dxe5+ {[%emt 0:01:18]} fxe5 {[%emt 0:00:07]} 33. Kd2 {[%emt 0:03:48]} Ra8 {[%emt 0:01:33]} 34. Rc2 {[%emt 0:01:48]} Nd7 {[%emt 0:03:00]} 35. Rb2 {[%emt 0:01:06]} Ra7 {[%emt 0:00:37]} 36. Kc3 {[%emt 0:00:37]} g5 {[%emt 0:00:29]} 37. Rd2 {[%emt 0:01:08]} Kc7 {[%emt 0:00:26]} 38. Nb2 {[%emt 0:01:10]} Ra8 {[%emt 0:01:29]} 39. Nc4 {[%emt 0:00:52]} Rb8 {[%emt 0:00:55]} 40. Rb2 {[%emt 0:00:00]} Ra8 {[%emt 0:00:00]} 41. Rb4 {[%emt 0:04:28]} h5 {[%emt 0:05:31]} 42. Nb2 {[%emt 0:02:02]} Nb6 {[%emt 0:02:04]} 43. Nd3 {[%emt 0:01:01]} Nd7 {[%emt 0:02:33]} 44. Nb2 {[%emt 0:04:53]} Nb6 {[%emt 0:00:20]} 45. Nd3 {[%emt 0:02:03]} Ra5 {[%emt 0:00:18]} 46. Rb1 {[%emt 0:01:52]} Nc8 {[%emt 0:02:07]} 47. Rb2 {[%emt 0:03:49]} Nd6 {[%emt 0:02:44]} 48. Kb4 {[%emt 0:01:29]} Nb7 {[%emt 0:04:17]} 49. Kc3 {[%emt 0:00:46]} Nd6 {[%emt 0:04:59]} 50. Kb4 {[%emt 0:00:36]} Kb6 {[%emt 0:01:32]} 51. Rc2 {[%emt 0:06:34]} Nb7 {[%emt 0:00:19]} 52. Rb2 {[%emt 0:01:10]} Nd6 {[%emt 0:01:50]} 53. Rc2 {[%emt 0:00:15]} Nb7 {[%emt 0:00:32]} 54. Rb2 {[%emt 0:00:05]} Kc7 {[%emt 0:00:28]} 55. Kc3 {[%emt 0:02:19]} g4 {[%emt 0:00:45]} 56. Rb4 {[%emt 0:03:11]} Nd6 {[%emt 0:01:10]} 57. Rb2 {[%emt 0:02:30]} Nf7 {[%emt 0:01:42]} 58. Kd2 {[%emt 0:01:12]} gxf3 {[%emt 0:02:43]} 59. gxf3 {[%emt 0:00:02]} Kd6 {[%emt 0:00:14]} 60. Rb8 {[%emt 0:01:03]} Ng5 {[%emt 0:01:07]} 61. Ke3 {[%emt 0:00:30]} Rb5 {[%emt 0:00:55]} 62. Rd8+ {[%emt 0:00:49]} Ke7 {[%emt 0:01:23]} 63. Rg8 {[%emt 0:01:12]} Ne6 {[%emt 0:00:50]} 64. Nb4 {[%emt 0:00:21]} c5 {[%emt 0:00:43]} 65. Nd5+ {[%emt 0:00:17]} Kf7 {[%emt 0:00:56]} 66. Ra8 {[%emt 0:00:23]} Rb3+ {[%emt 0:00:11]} 67. Kf2 {[%emt 0:00:09]} Nd4 $11 {[%emt 0:00:52]} 68. Rxa4 {[%emt 0:00:35]} Rxf3+ {[%emt 0:00:10]} 69. Kg2 {[%emt 0:00:05]} Rb3 {[%emt 0:00:46]} 70. Ra7+ {[%emt 0:00:51]} Ke6 {[%emt 0:00:08]} 71. a4 {[%emt 0:00:45]} h4 {[%emt 0:00:38]} 72. Rh7 {[%emt 0:01:08]} c4 {[%emt 0:01:44]} 73. a5 {[%emt 0:00:25]} c3 {[%emt 0:01:05]} 74. a6 {[%emt 0:00:23]} c2 {[%emt 0:00:45]} 75. Rc7 {[%emt 0:00:09]} Ra3 {[%emt 0:00:39]} 76. Nb4 {[%emt 0:00:51]} Kd6 {[%emt 0:00:20]} 77. Rc8 {[%emt 0:00:33]} Kd7 {[%emt 0:02:45]} 78. Rc5 {[%emt 0:00:12]} Kd6 {[%emt 0:00:49]} 79. Rc8 {[%emt 0:00:02]} Kd7 {[%emt 0:00:36]} 80. Rc5 {[%emt 0:00:04]} Ra5 {[%emt 0:00:37]} 81. Rc3 {[%emt 0:01:19]} Ra3 {[%emt 0:00:10]} 82. Rc5 {[%emt 0:00:04]} Ra5 {[%emt 0:00:36]} 83. Rc3 {[%emt 0:00:04]} Kd6 {[%emt 0:00:37]} 84. Kf2 {[%emt 0:01:51]} Ra4 {[%emt 0:01:06]} 85. Nxc2 {[%emt 0:00:24]} Ra2 {[%emt 0:00:45]} 86. a7 {[%emt 0:00:23]} Rxa7 {[%emt 0:00:22]} 87. Nxd4 {[%emt 0:00:24]} exd4 {[%emt 0:00:04]} 88. Rh3 {[%emt 0:00:42]} Ra2+ {[%emt 0:00:32]} 89. Ke1 {[%emt 0:00:08]} Ke5 {[%emt 0:00:11]} 90. Rxh4 {[%emt 0:00:28]} d3 {[%emt 0:00:11]} 91. Rh5+ {[%emt 0:01:06]} Kd4 {[%emt 0:00:20]} 92. e5 {[%emt 0:00:26]} Kc3 {[%emt 0:00:42]} 93. e6 {[%emt 0:00:29]} d2+ {[%emt 0:00:47]} 94. Ke2 {[%emt 0:00:21]} Ra1 {[%emt 0:00:05]} 95. Rd5 {[%emt 0:00:40]} Re1+ {[%emt 0:00:20]} 96. Kf2 {[%emt 0:00:27]} Rxe6 {[%emt 0:00:07]} 97. h4 {[%emt 0:00:35]} Re1 {[%emt 0:00:30]} 98. Kf3 {[%emt 0:00:21]} d1=Q+ {[%emt 0:00:17]} 99. Rxd1 {[%emt 0:00:05]} Rxd1 {[%emt 0:00:04]} 100. h5 {[%emt 0:00:10]} Rd4 {[%emt 0:00:42]} 101. Kg3 {[%emt 0:00:12]} Kc4 {[%emt 0:00:07]} 0-1

[Event "IIFL Wealth 4th Mumbai GM"]
[Site "Mumbai"]
[Date "2019.01.03"]
[Round "5"]
[White "Mehdi Hasan Parag"]
[Black "Snehal, Bhosale"]
[Result "1-0"]
[ECO "B89"]
[WhiteElo "2218"]
[BlackElo "2135"]
[Annotator "NA"]
[PlyCount "93"]
[EventDate "2018.12.30"]
[EventType "swiss"]
[EventCountry "IND"]
[SourceTitle "playchess.com"]
[Source "ChessBase"]
[SourceQuality "1"]
[TimeControl "40/5400+30:1800+30"]

1. e4 {[%emt 0:00:00]} c5 {[%emt 0:00:00]} 2. Nf3 {[%emt 0:00:00]} d6 {[%emt 0:00:00]} 3. d4 {[%emt 0:00:09]} cxd4 {[%emt 0:00:00]} 4. Nxd4 {[%emt 0:00:04]} Nf6 {[%emt 0:00:05]} 5. Nc3 {[%emt 0:00:06]} Nc6 {[%emt 0:00:09]} 6. Bc4 {[%emt 0:00:29]} e6 {[%emt 0:00:11]} 7. Be3 {[%emt 0:00:20]} a6 {[%emt 0:01:09]} 8. Bb3 {[%emt 0:00:47]} Qc7 {[%emt 0:02:09]} 9. f4 {[%emt 0:01:17]} b5 {[%emt 0:08:59]} 10. Qf3 {[%emt 0:07:02]} Bb7 {[%emt 0:02:21]} 11. O-O-O {[%emt 0:03:31]} Be7 {[%emt 0:06:53]} 12. g4 {[%emt 0:03:43]} b4 {[%emt 0:16:31]} 13. Nce2 {[%emt 0:18:45]} Nxd4 {[%emt 0:06:15]} 14. Rxd4 {[%emt 0:00:10]} Nxe4 {[%emt 0:20:45]} 15. Rxe4 {[%emt 0:01:12]} f5 16. gxf5 {[%emt 0:02:44]} exf5 {[%emt 0:01:44]} 17. Ba4+ {[%emt 0:05:26]} Kf7 {[%emt 0:08:10]} 18. Bb3+ {[%emt 0:01:40]} Ke8 {[%emt 0:00:16]} 19. Ba4+ {[%emt 0:08:34]} Kf7 {[%emt 0:00:40]} 20. Bb3+ {[%emt 0:12:37]} Ke8 {[%emt 0:01:14]} 21. Qg3 {[%emt 0:07:52]} Bxe4 {[%emt 0:05:32]} 22. Qxg7 {[%emt 0:00:04]} Bxh1 {[%emt 0:04:18]} 23. Qxh8+ {[%emt 0:00:02]} Bf8 {[%emt 0:00:21]} 24. Ng3 {[%emt 0:04:35]} Bc6 {[%emt 0:09:29]} 25. Nxf5 {[%emt 0:01:21]} d5 {[%emt 0:02:23]} 26. Nd4 {[%emt 0:02:13]} Qe7 {[%emt 0:00:33]} 27. Kd2 {[%emt 0:01:10]} Kd7 {[%emt 0:01:08]} 28. Nxc6 {[%emt 0:01:11]} Qxe3+ {[%emt 0:01:19]} 29. Kxe3 {[%emt 0:00:01]} Bc5+ {[%emt 0:00:08]} 30. Qd4 {[%emt 0:01:05]} Bxd4+ {[%emt 0:01:32]} 31. Nxd4 {[%emt 0:00:30]} Kd6 {[%emt 0:00:09]} 32. Nf5+ {[%emt 0:03:51]} Kc5 {[%emt 0:00:35]} 33. Ba4 {[%emt 0:00:20]} h5 {[%emt 0:00:55]} 34. Kf3 {[%emt 0:00:14]} Rg8 {[%emt 0:00:23]} 35. h4 {[%emt 0:00:29]} Rg1 {[%emt 0:00:31]} 36. Ng3 {[%emt 0:00:15]} Ra1 {[%emt 0:00:27]} 37. Bb3 {[%emt 0:00:11]} a5 {[%emt 0:00:22]} 38. f5 {[%emt 0:01:19]} a4 {[%emt 0:00:18]} 39. Bxa4 {[%emt 0:00:03]} Rxa2 {[%emt 0:00:05]} 40. Bb3 {[%emt 0:00:00]} Rxb2 {[%emt 0:00:00]} 41. Nxh5 {[%emt 0:01:20]} Rb1 {[%emt 0:00:27]} 42. Ng3 {[%emt 0:01:03]} Kd6 {[%emt 0:00:47]} 43. h5 {[%emt 0:00:31]} Ke5 {[%emt 0:00:47]} 44. h6 {[%emt 0:00:19]} Ra1 {[%emt 0:00:13]} 45. Kg4 {[%emt 0:02:53]} Ra7 {[%emt 0:03:00]} 46. Kg5 {[%emt 0:03:08]} Rd7 {[%emt 0:00:40]} 47. f6 {[%emt 0:00:52]} 1-0

[Event "IIFL Wealth 4th Mumbai GM"]
[Site "Mumbai"]
[Date "2019.01.03"]
[Round "5"]
[White "Kurbonboeva, Sarvinoz"]
[Black "Soham Datar"]
[Result "1-0"]
[ECO "D02"]
[WhiteElo "2214"]
[BlackElo "2134"]
[Annotator "NA"]
[PlyCount "107"]
[EventDate "2018.12.30"]
[EventType "swiss"]
[EventCountry "IND"]
[SourceTitle "playchess.com"]
[Source "ChessBase"]
[SourceQuality "1"]
[TimeControl "40/5400+30:1800+30"]

1. d4 {[%emt 0:00:00]} d5 {[%emt 0:00:54]} 2. Nf3 {[%emt 0:00:00]} Nf6 {[%emt 0:00:18]} 3. g3 {[%emt 0:00:00]} c6 {[%emt 0:01:53]} 4. Bg2 {[%emt 0:00:03]} Bf5 {[%emt 0:03:27]} 5. O-O {[%emt 0:01:23]} e6 {[%emt 0:00:10]} 6. c4 {[%emt 0:00:49]} Nbd7 {[%emt 0:00:14]} 7. b3 {[%emt 0:02:18]} Be7 {[%emt 0:00:20]} 8. Bb2 {[%emt 0:00:46]} h6 {[%emt 0:00:35]} 9. Nc3 {[%emt 0:01:50]} O-O {[%emt 0:00:26]} 10. Nd2 {[%emt 0:01:18]} Bh7 {[%emt 0:09:07]} 11. e4 {[%emt 0:05:21]} dxe4 {[%emt 0:00:10]} 12. Ndxe4 {[%emt 0:00:09]} Nxe4 {[%emt 0:01:02]} 13. Nxe4 {[%emt 0:00:04]} Nf6 {[%emt 0:00:13]} 14. Nd2 {[%emt 0:01:47]} a5 {[%emt 0:02:14]} 15. a3 {[%emt 0:01:06]} Qb6 {[%emt 0:03:41]} 16. Qe2 {[%emt 0:04:02]} Rfe8 {[%emt 0:04:31]} 17. Rfe1 {[%emt 0:16:33]} Bc2 {[%emt 0:05:08]} 18. Qe3 {[%emt 0:08:18]} c5 {[%emt 0:11:52]} 19. d5 {[%emt 0:05:33]} Bf5 {[%emt 0:01:54]} 20. Qc3 {[%emt 0:03:58]} Rad8 {[%emt 0:01:56]} 21. Ne4 {[%emt 0:11:32]} Bxe4 {[%emt 0:02:00]} 22. Rxe4 {[%emt 0:04:46]} Bf8 {[%emt 0:02:02]} 23. Re2 {[%emt 0:03:33]} exd5 {[%emt 0:00:41]} 24. Rxe8 {[%emt 0:00:04]} Rxe8 {[%emt 0:01:05]} 25. cxd5 {[%emt 0:00:04]} Bd6 {[%emt 0:01:43]} 26. Qd3 {[%emt 0:04:44]} Ng4 {[%emt 0:01:31]} 27. Qf3 {[%emt 0:02:59]} Ne5 {[%emt 0:02:04]} 28. Qc3 {[%emt 0:00:10]} f6 {[%emt 0:03:33]} 29. Re1 {[%emt 0:00:40]} c4 {[%emt 0:05:50]} 30. bxc4 {[%emt 0:02:03]} Rc8 {[%emt 0:00:43]} 31. Re4 {[%emt 0:01:21]} Qc5 {[%emt 0:11:05]} 32. Bh3 {[%emt 0:05:44]} Rc7 {[%emt 0:00:28]} 33. Be6+ {[%emt 0:04:48]} Kf8 {[%emt 0:01:51]} 34. Bc1 {[%emt 0:00:07]} Nxc4 {[%emt 0:01:42]} 35. Bxh6 {[%emt 0:00:15]} Be5 {[%emt 0:01:51]} 36. Qc1 {[%emt 0:06:19]} b5 {[%emt 0:06:55]} 37. Bxg7+ {[%emt 0:01:01]} Rxg7 {[%emt 0:00:25]} 38. Qh6 {[%emt 0:00:05]} Qc7 {[%emt 0:05:15]} 39. Qh8+ {[%emt 0:00:11]} Ke7 {[%emt 0:00:02]} 40. Qxg7+ {[%emt 0:00:00]} Kd6 {[%emt 0:00:00]} 41. Qf8+ {[%emt 0:06:06]} Qe7 {[%emt 0:00:16]} 42. Qc8 Qc7 {[%emt 0:00:35]} 43. Qa6+ {[%emt 0:04:17]} Qb6 {[%emt 0:01:08]} 44. Qxb6+ {[%emt 0:04:19]} Nxb6 {[%emt 0:00:02]} 45. h4 {[%emt 0:00:08]} Nxd5 {[%emt 0:01:20]} 46. Bxd5 {[%emt 0:00:24]} Kxd5 {[%emt 0:00:01]} 47. Re3 {[%emt 0:00:09]} b4 {[%emt 0:01:42]} 48. axb4 {[%emt 0:00:02]} axb4 {[%emt 0:00:06]} 49. Kf1 {[%emt 0:00:45]} Kc4 {[%emt 0:00:25]} 50. Ke2 {[%emt 0:00:12]} Bd4 {[%emt 0:03:19]} 51. Re4 {[%emt 0:02:56]} b3 {[%emt 0:00:21]} 52. Kd2 {[%emt 0:00:16]} Kd5 {[%emt 0:00:07]} 53. Rxd4+ {[%emt 0:00:18]} Kxd4 {[%emt 0:00:04]} 54. h5 {[%emt 0:00:10]} 1-0

[Event "IIFL Wealth 4th Mumbai GM"]
[Site "Mumbai"]
[Date "2019.01.03"]
[Round "5"]
[White "Aaryan Varshney"]
[Black "Kavinda, Akila"]
[Result "0-1"]
[ECO "B06"]
[WhiteElo "2200"]
[BlackElo "2092"]
[Annotator "NA"]
[PlyCount "70"]
[EventDate "2018.12.30"]
[EventType "swiss"]
[EventCountry "IND"]
[SourceTitle "playchess.com"]
[Source "ChessBase"]
[SourceQuality "1"]
[TimeControl "40/5400+30:1800+30"]

1. d4 {[%emt 0:02:12]} d6 {[%emt 0:00:00]} 2. e4 {[%emt 0:00:06]} g6 {[%emt 0:00:00]} 3. Nc3 {[%emt 0:00:34]} Bg7 {[%emt 0:00:00]} 4. Nf3 {[%emt 0:00:11]} a6 {[%emt 0:00:02]} 5. a4 {[%emt 0:00:07]} Nf6 {[%emt 0:00:07]} 6. Be2 {[%emt 0:00:44]} O-O {[%emt 0:00:20]} 7. O-O {[%emt 0:00:04]} Nc6 {[%emt 0:04:26]} 8. h3 {[%emt 0:07:47]} e5 {[%emt 0:04:48]} 9. dxe5 {[%emt 0:09:19]} dxe5 {[%emt 0:00:06]} 10. Be3 {[%emt 0:00:42]} Qe7 {[%emt 0:01:19]} 11. Bg5 {[%emt 0:16:15]} Nb4 {[%emt 0:21:30]} 12. Qc1 {[%emt 0:04:20]} b6 {[%emt 0:07:28]} 13. Nh2 {[%emt 0:10:49]} Bb7 {[%emt 0:09:55]} 14. Ng4 {[%emt 0:07:21]} h5 {[%emt 0:22:29]} 15. Nxf6+ {[%emt 0:10:29]} Bxf6 {[%emt 0:00:04]} 16. Be3 {[%emt 0:00:46]} Rad8 {[%emt 0:06:39]} 17. Bc4 {[%emt 0:07:05]} Kh7 {[%emt 0:00:31]} 18. f3 {[%emt 0:01:27]} Rd7 {[%emt 0:02:20]} 19. Kh1 {[%emt 0:00:48]} Bh4 {[%emt 0:03:32]} 20. g4 {[%emt 0:12:16]} f5 {[%emt 0:01:25]} 21. Bh6 {[%emt 0:01:17]} Rfd8 {[%emt 0:01:53]} 22. gxf5 {[%emt 0:01:45]} g5 {[%emt 0:01:00]} 23. Be6 {[%emt 0:04:02]} Rd6 {[%emt 0:04:03]} 24. Nd1 {[%emt 0:00:59]} Kxh6 {[%emt 0:02:00]} 25. Ne3 {[%emt 0:00:10]} Bg3 {[%emt 0:01:18]} 26. c3 {[%emt 0:00:51]} Nd3 {[%emt 0:00:22]} 27. Qc2 {[%emt 0:00:26]} Bf4 {[%emt 0:01:20]} 28. Nd5 {[%emt 0:00:32]} Bxd5 {[%emt 0:00:12]} 29. exd5 {[%emt 0:00:30]} Nc5 {[%emt 0:00:08]} 30. c4 {[%emt 0:00:29]} Nxe6 {[%emt 0:00:25]} 31. fxe6 {[%emt 0:00:06]} c6 {[%emt 0:00:11]} 32. h4 {[%emt 0:00:56]} cxd5 {[%emt 0:00:08]} 33. hxg5+ {[%emt 0:00:07]} Qxg5 {[%emt 0:00:32]} 34. cxd5 {[%emt 0:00:14]} Qh4+ {[%emt 0:00:15]} 35. Kg1 {[%emt 0:00:03]} Rg8+ {[%emt 0:00:08]} 0-1

[Event "IIFL Wealth 4th Mumbai GM"]
[Site "Mumbai"]
[Date "2019.01.03"]
[Round "5"]
[White "Banerjee, Sushant"]
[Black "Lama, Milan"]
[Result "*"]
[ECO "B52"]
[WhiteElo "2198"]
[BlackElo "1897"]
[Annotator "NA"]
[PlyCount "98"]
[EventDate "2018.12.30"]
[EventType "swiss"]
[EventCountry "IND"]
[SourceTitle "playchess.com"]
[Source "ChessBase"]
[SourceQuality "1"]
[TimeControl "40/5400+30:1800+30"]

1. e4 {[%emt 0:00:00]} c5 {[%emt 0:01:30]} 2. Nf3 {[%emt 0:00:00]} d6 {[%emt 0:01:25]} 3. Bb5+ {[%emt 0:00:04]} Bd7 {[%emt 0:01:17]} 4. Bxd7+ {[%emt 0:00:09]} Nxd7 {[%emt 0:00:23]} 5. O-O {[%emt 0:00:13]} g6 {[%emt 0:01:08]} 6. c3 {[%emt 0:00:20]} Ngf6 {[%emt 0:02:27]} 7. Qe2 {[%emt 0:00:14]} Bg7 {[%emt 0:06:26]} 8. Rd1 {[%emt 0:01:28]} Qc7 {[%emt 0:03:46]} 9. d4 {[%emt 0:02:18]} cxd4 {[%emt 0:22:08]} 10. cxd4 {[%emt 0:04:26]} e6 {[%emt 0:00:46]} 11. Nc3 {[%emt 0:00:18]} a6 {[%emt 0:00:25]} 12. Bg5 {[%emt 0:03:20]} O-O {[%emt 0:06:37]} 13. Rac1 {[%emt 0:01:06]} h6 {[%emt 0:11:28]} 14. Bf4 {[%emt 0:03:28]} Nh5 {[%emt 0:02:17]} 15. Bg3 {[%emt 0:00:25]} Nxg3 {[%emt 0:00:13]} 16. hxg3 {[%emt 0:00:11]} Qa5 {[%emt 0:01:47]} 17. Nd2 {[%emt 0:04:32]} b5 {[%emt 0:02:34]} 18. Nb3 {[%emt 0:00:49]} Qb6 {[%emt 0:00:20]} 19. Qd3 {[%emt 0:11:41]} Rab8 {[%emt 0:05:40]} 20. Ne2 {[%emt 0:07:04]} Rfc8 {[%emt 0:02:25]} 21. Qd2 {[%emt 0:02:19]} Kh7 {[%emt 0:04:23]} 22. Qf4 {[%emt 0:05:49]} Kg8 {[%emt 0:01:41]} 23. Rxc8+ {[%emt 0:00:34]} Rxc8 {[%emt 0:00:11]} 24. Rc1 {[%emt 0:00:05]} Rxc1+ {[%emt 0:01:18]} 25. Qxc1 {[%emt 0:00:10]} Qb7 {[%emt 0:01:59]} 26. Qc2 {[%emt 0:00:27]} Nb6 {[%emt 0:01:26]} 27. Na5 {[%emt 0:00:41]} Qc8 {[%emt 0:00:44]} 28. Qxc8+ {[%emt 0:01:24]} Nxc8 {[%emt 0:00:13]} 29. Nb7 {[%emt 0:00:26]} Kf8 {[%emt 0:01:00]} 30. f4 {[%emt 0:00:17]} Ke8 {[%emt 0:04:16]} 31. Kf2 {[%emt 0:00:29]} Kd7 {[%emt 0:00:27]} 32. e5 {[%emt 0:01:11]} Bf8 {[%emt 0:04:36]} 33. exd6 {[%emt 0:05:21]} Bxd6 {[%emt 0:00:23]} 34. Nxd6 {[%emt 0:03:00]} Nxd6 {[%emt 0:00:34]} 35. b3 {[%emt 0:00:56]} Kc6 {[%emt 0:00:53]} 36. Ke3 {[%emt 0:00:25]} b4 {[%emt 0:01:33]} 37. g4 {[%emt 0:02:12]} Kd5 {[%emt 0:01:11]} 38. Nc1 {[%emt 0:01:19]} a5 {[%emt 0:01:59]} 39. Ne2 {[%emt 0:01:04]} f6 {[%emt 0:01:21]} 40. Ng3 {[%emt 0:00:00]} f5 {[%emt 0:00:00]} 41. gxf5 {[%emt 0:05:00]} Nxf5+ {[%emt 0:04:25]} 42. Nxf5 {[%emt 0:00:44]} exf5 {[%emt 0:01:24]} 43. Kd3 {[%emt 0:00:31]} g5 {[%emt 0:00:13]} 44. Ke3 {[%emt 0:00:08]} g4 {[%emt 0:07:31]} 45. g3 {[%emt 0:01:00]} h5 {[%emt 0:00:25]} 46. Kd3 {[%emt 0:00:13]} Kd6 {[%emt 0:00:25]} 47. Ke3 {[%emt 0:01:08]} Kd5 {[%emt 0:00:08]} 48. Kd3 h4 49. gxh4 {[%emt 0:00:00]} g3 {[%emt 0:00:00]} *

[Event "IIFL Wealth 4th Mumbai GM"]
[Site "Mumbai"]
[Date "2019.01.03"]
[Round "5"]
[White "Banerjee, Sushant"]
[Black "Lama, Milan"]
[Result "1/2-1/2"]
[ECO "B01"]
[WhiteElo "2198"]
[BlackElo "1897"]
[Annotator "NA"]
[PlyCount "44"]
[EventDate "2018.12.30"]
[EventType "swiss"]
[EventCountry "IND"]
[SourceTitle "playchess.com"]
[Source "ChessBase"]
[SourceQuality "1"]
[TimeControl "40/5400+30:1800+30"]

1. e4 {[%emt 0:01:53]} d5 {[%emt 0:00:00]} 2. exd5 {[%emt 0:00:45]} Qxd5 {[%emt 0:00:03]} 3. Nc3 {[%emt 0:00:34]} Qa5 {[%emt 0:00:11]} 4. Nf3 {[%emt 0:00:53]} Nf6 {[%emt 0:00:18]} 5. Bc4 {[%emt 0:00:37]} Bf5 {[%emt 0:01:03]} 6. O-O {[%emt 0:01:18]} e6 {[%emt 0:00:13]} 7. Re1 {[%emt 0:02:53]} c6 {[%emt 0:02:26]} 8. d4 {[%emt 0:08:41]} Bb4 {[%emt 0:01:51]} 9. Bd3 {[%emt 0:13:02]} Bg4 {[%emt 0:01:39]} 10. Re5 {[%emt 0:01:11]} Qc7 {[%emt 0:04:39]} 11. Rg5 {[%emt 0:07:36]} h6 {[%emt 0:02:08]} 12. Rxg7 {[%emt 0:03:04]} Bf8 {[%emt 0:00:22]} 13. Rxg4 {[%emt 0:00:48]} Nxg4 {[%emt 0:00:11]} 14. Qe2 {[%emt 0:00:57]} Nf6 {[%emt 0:04:15]} 15. Ne5 {[%emt 0:02:08]} Nbd7 {[%emt 0:00:58]} 16. Bf4 {[%emt 0:02:03]} Bd6 {[%emt 0:00:49]} 17. Bg3 {[%emt 0:02:06]} Rf8 {[%emt 0:07:58]} 18. Re1 {[%emt 0:07:33]} O-O-O {[%emt 0:01:17]} 19. Qf3 {[%emt 0:03:46]} Bxe5 {[%emt 0:07:06]} 20. Rxe5 {[%emt 0:18:15]} Qb6 {[%emt 0:04:05]} 21. Re1 {[%emt 0:02:14]} Qxd4 {[%emt 0:01:39]} 22. Qxc6+ {[%emt 0:00:47]} bxc6 {[%emt 0:03:01]} 1/2-1/2